Cogmind - Beta 15 @@@ ROGUE MODE // 2025.07.22 @ 23:17:18 Player: H3-RMN Result: Destroyed by D-53 Grenadier with Mini Grenade Launcher Performance ------------- Evolutions (0) 0 Regions Visited (2) 400 Robots Destroyed (24) 120 Value Destroyed (505) 505 Prototype IDs (2) 40 Alien Tech Used (0) 0 Bonus (0) 0 TOTAL SCORE: 1065 Bonus ------- None Cogmind --------- Core Integrity 0/250 Matter 275/300 Energy 50/125 System Corruption 0% Temperature Cool (86) Movement Treading (240) Ox1 Location -10/Mines Parts ------- > --- POWER (1) -------- Light Ion Engine > --- PROPULSION (2) --- Light Treads > --- UTILITY (2) ------ Medium Storage Unit Hardlight Generator > --- WEAPON (2) ------- Pulse Rifle High-powered Shotgun > --- INVENTORY (10) --- Aluminum Leg Aluminum Leg Wheel Large Matter Pod (150) Seismic Detector EM Pulse Gun Heavy Particle Cannon Light Assault Rifle Mining Laser Peak State ------------ > --- POWER ------------ Light Nuclear Core > --- PROPULSION ------- Light Treads Compact Wheel > --- UTILITY ---------- Medium Storage Unit Hardlight Generator > --- WEAPON ----------- Pulse Rifle High-powered Shotgun > --- INVENTORY -------- Light Treads Aluminum Leg Aluminum Leg Wheel Large Matter Pod Seismic Detector EM Pulse Gun Heavy Particle Cannon Light Assault Rifle Mining Laser [Rating: 16] Favorites ----------- Power Ion Engine Engine Ion Engine Power Core Light Nuclear Core Propulsion Light Treads Treads Light Treads Wheel Compact Wheel Utility Medium Storage Unit Device Hardlight Generator Storage Medium Storage Unit Processor Transport Network Coupler Weapon Medium Laser Energy Gun Medium Laser Ballistic Gun Assault Rifle Build | -11 -10 -10 ------- Run | Yrd Mat Min Slots Evolved . | . . . Power . | . . . Propulsion . | . . . Utility . | . . . Weapon . | . . . Parts Attached 21 | 8 6 7 Power 4 | 1 1 2 Engine 3 | 1 1 1 Core 1 | . . 1 Reactor . | . . . Propulsion 6 | 2 2 2 Treads 4 | 1 2 1 Leg . | . . . Wheel 2 | 1 . 1 Hover . | . . . Flight . | . . . Utility 6 | 2 3 1 Device 2 | 1 . 1 Storage 2 | 1 1 . Processor 2 | . 2 . Hackware . | . . . Protection . | . . . Artifact . | . . . Weapon 5 | 3 . 2 Energy Gun 3 | 2 . 1 Energy Cannon . | . . . Ballistic Gun 2 | 1 . 1 Ballistic Cannon . | . . . Launcher . | . . . Special Weapon . | . . . Impact Weapon . | . . . Slashing Weapon . | . . . Piercing Weapon . | . . . Special Melee Weapon . | . . . Unidentified Prototypes . | . . . Parts Lost 5 | . 2 3 Power 1 | . . 1 Propulsion 2 | . . 2 Utility 1 | . 1 . Weapon 1 | . 1 . Highest Loss Streak 2 | . 1 2 To Critical Strikes . | . . . Average Backups 8 | 4 8 9 Power . | . . . Propulsion 4 | 3 5 4 Utility 1 | . 1 2 Weapon 2 | . 2 3 Tool/Special . | . . . Unused Backups 10 | . 1 9 Power 1 | . 1 . Propulsion 4 | . . 4 Utility 2 | . . 2 Weapon 3 | . . 3 Tool/Special . | . . . Average Slot Usage (%) 98 | . 98 97 Engine 12 | . 13 11 Treads 14 | . 14 14 Wheel 14 | . 14 14 Device 8 | . 6 10 Storage 14 | . 14 14 Processor 5 | . 7 3 Energy Gun 13 | . 13 14 Ballistic Gun 13 | . 13 14 Peak Build Rating 16 | 7 8 16 Average Rating 9 | 5 7 12 On Entrance 5 | . 7 8 Naked Turns . | . . . Heaviest Build 26 | 15 19 26 Greatest Support 20 | 16 20 16 Greatest Overweight (x) 2 | . 1 2 Average Overweight (x) . | . . 1 Largest Inventory Capacity 10 | 8 10 10 Average Capacity 9 | 7 8 10 Most Carried 10 | 8 10 10 Average Carried 8 | 4 8 9 Final Capacity 10 | 8 10 10 Final Carried 10 | 8 10 9 Class Distribution -------------------- 100% | Mutant Dominant Class ---------------- Mutant | -10/Materials Mutant | -10/Mines Resources | -11 -10 -10 ----------- Run | Yrd Mat Min Matter Collected 813 | 280 344 189 Remotely . | . . . Salvage Created 775 | 122 437 216 Parts 41 | 7 25 9 Haulers Intercepted 2 | . 2 . Recyclers Shooed 1 | . . 1 Parts Field Recycled . | . . . Retrieved Matter . | . . . Parts Self-Destructed . | . . . Prevented . | . . . Kills | -11 -10 -10 ------- Run | Yrd Mat Min Combat Hostiles Destroyed 16 | . 11 5 Guns 16 | . 11 5 Classes Destroyed 8 | 2 4 2 Worker 1 | . . 1 Tunneler 2 | 2 . . Hauler 2 | . 2 . Recycler 2 | 1 . 1 Watcher 1 | . 1 . Swarmer 6 | . 6 . Grunt 9 | . 5 4 Demolisher 1 | . . 1 Best Kill Streak 3 | 2 3 3 Combat Bots Only 3 | . 3 2 Max Kills in Single Turn 2 | 1 2 1 Gunslinging . | . . . Exploded . | . . . Melee . | . . . Uniques/NPCs Destroyed . | . . . Combat | -11 -10 -10 -------- Run | Yrd Mat Min Hostile Shots Fired 91 | . 57 34 Missed 23 | . 12 11 Hits 68 | . 45 23 Projectile 68 | . 45 23 AOE 7 | . . 7 Damage Taken 944 | . 437 507 Core 256 | . 105 151 Absorbed by Shields 20 | . . 20 Core Remaining (%) 100 | 100 . . Volleys Fired 75 | 6 38 31 Largest 2 | 2 2 2 Hottest 100 | 100 70 88 Shots Fired 140 | 12 74 54 Gun 140 | 12 74 54 Cannon . | . . . Launcher . | . . . Special . | . . . Kinetic 69 | . 38 31 Thermal 71 | 12 36 23 Explosive . | . . . Electromagnetic . | . . . Robot Hit Streak 7 | 3 6 7 Robot Miss Streak 3 | 1 3 3 Penetration Max . | . . . Secondary Targets 4 | . 3 1 Max Gunslinging Chain 1 | . 1 1 Shots Hit Robots 91 | 8 43 40 Core Hits 39 | 4 21 14 Critical Kills 1 | . 1 . Critical Parts Destroyed 1 | . . 1 Critical Strikes 5 | 2 2 1 Burn 3 | 2 1 . Destroy 2 | . 1 1 Melee Attacks . | . . . Impact . | . . . Slashing . | . . . Piercing . | . . . Sneak Attacks . | . . . Combat Hostiles . | . . . Follow-up Attacks . | . . . Damage Inflicted 1322 | 110 580 632 Guns 1322 | 110 580 632 Cannons . | . . . Explosions . | . . . Melee . | . . . Ramming . | . . . Kinetic 693 | . 292 401 Thermal 629 | 110 288 231 Explosive . | . . . Electromagnetic . | . . . Impact . | . . . Slashing . | . . . Piercing . | . . . Highest Corruption . | . . . Average Corruption . | . . . Corruption Purged . | . . . Corruption Blocked . | . . . Overload Shots . | . . . Overflow Damage . | . . . Projectiles . | . . . Explosions . | . . . Melee . | . . . Knockbacks . | . . . Impact . | . . . Kinetic . | . . . Secondary . | . . . Self-Inflicted Damage . | . . . Shots . | . . . Rammed . | . . . Targets Rammed . | . . . Kicked . | . . . Crushed . | . . . Highest Temperature 141 | 117 117 141 Average Temperature 47 | 51 33 65 Received Heat Transfer 254 | . 129 125 Siege Activations . | . . . Martial Activations . | . . . Shielding Activations . | . . . Robots Disrupted . | . . . Combat Hostiles . | . . . Robots Corrupted . | . . . Combat Hostiles . | . . . Parts Fried . | . . . Impact Corruptions . | . . . Robots Melted . | . . . Combat Hostiles . | . . . Parts Melted 2 | 1 1 . Heat Transferred 1961 | 481 925 555 Parts Sabotaged . | . . . Parts Stolen . | . . . Parts Stripped . | . . . Power Chain Reactions . | . . . Alert | -11 -10 -10 ------- Run | Yrd Mat Min Maximum Alert Level . | . . . Low Security (%) 100 | 100 100 100 Level 1 . | . . . Level 2 . | . . . Level 3 . | . . . Level 4 . | . . . Level 5 . | . . . High Security . | . . . Max Security . | . . . Peak Influence 95 | 10 95 45 Initial 16 | . . 16 Average 26 | 1 43 11 Influence Increases 441 | 15 296 130 Destroy 0b10 Robot/C 320 | . 220 100 Destroy 0b10 Robot/NC 40 | 15 15 10 Destroy Leader 66 | . 46 20 Partial Spotted 15 | . 15 . Influence Decreases 431 | 15 252 164 Entered New Map 28 | . . 28 Time Decay 373 | 15 232 126 Lost Part 30 | . 20 10 Squads Dispatched 2 | . 1 1 Investigation 1 | . . 1 Extermination . | . . . Reinforcement 1 | . 1 . Assault . | . . . Garrison . | . . . Intercept . | . . . Searches Triggered . | . . . Construction Impeded . | . . . Haulers Reinforced . | . . . Active Scanning Responses . | . . . Cargo Convoy Interrupts . | . . . Stealth | -11 -10 -10 --------- Run | Yrd Mat Min Distress Signals 2 | . 2 . Communications Jammed . | . . . Distress Signals . | . . . Times Spotted 22 | . 16 6 Peak Tracking Total 5 | . 5 2 Tactical Retreats . | . . . Traps | -11 -10 -10 ------- Run | Yrd Mat Min Traps Triggered 3 | . 3 . Indirectly . | . . . Trap Hack Attempts . | . . . Triggered . | . . . Disarmed . | . . . Reprogrammed . | . . . Reused . | . . . Traps Extracted . | . . . Installed . | . . . Triggered . | . . . Machines | -11 -10 -10 ---------- Run | Yrd Mat Min Machines Disabled 1 | . 1 . Max in Single Turn 1 | . 1 . Machines Repaired . | . . . Machines Dismantled . | . . . Machines Sabotaged . | . . . Overloaded Fab Kills . | . . . Hacking | -11 -10 -10 --------- Run | Yrd Mat Min Machines Accessed 3 | . 2 1 Terminals 2 | . 2 . Fabricators . | . . . Repair Stations . | . . . Recycling Units . | . . . Scanalyzers . | . . . Garrison Access . | . . . Total Hacks 7 | . 6 1 Successful 3 | . 2 1 Failed 4 | . 4 . Catastrophic 1 | . 1 . Database Lockouts . | . . . Manual 3 | . 3 . Terminals 6 | . 6 . Fabricators . | . . . Repair Stations . | . . . Recycling Units . | . . . Scanalyzers . | . . . Garrison Access . | . . . Terminal Hacks 3 | . 2 1 Robot Analysis 1 | . 1 . Prototype ID Bank 1 | . 1 . Open Door 1 | . . 1 Fabricator Hacks . | . . . Repair Station Hacks . | . . . Recycling Unit Hacks . | . . . Scanalyzer . | . . . Garrison Access Hacks . | . . . Unauthorized Hacks . | . . . Terminals . | . . . Fabricators . | . . . Repair Stations . | . . . Recycling Units . | . . . Scanalyzers . | . . . Garrison Access . | . . . Data Cores Recovered . | . . . Used . | . . . Hacking Detections 2 | . 2 . Full Trace Events . | . . . Feedback Events . | . . . Feedback Blocked . | . . . Robot Schematics Acquired . | . . . Robots Built . | . . . Authchips . | . . . Time . | . . . Total Robot Build Rating . | . . . Part Schematics Acquired . | . . . Parts Built . | . . . Authchips . | . . . Time . | . . . Total Part Build Rating . | . . . Parts Repaired . | . . . Time . | . . . Parts Recycled . | . . . Recycled Matter . | . . . Retrieved Matter . | . . . Retrieved Components . | . . . Parts Scanalyzed . | . . . Part Schematics Acquired . | . . . Parts Damaged . | . . . Bothacking | -11 -10 -10 ------------ Run | Yrd Mat Min Used RIF Installer . | . . . Robots Hacked . | . . . Non-combat . | . . . Combat . | . . . Robot Hacks Applied . | . . . Relay Couplers Released . | . . . Fabnet Peak Effective % . | . . . Robots Rewired . | . . . Allies Hacked . | . . . Hacks Repelled . | . . . Allies | -11 -10 -10 -------- Run | Yrd Mat Min Total Allies . | . . . Largest Group . | . . . Highest-Rated Group . | . . . Highest-Rated Ally . | . . . Total Orders . | . . . Ally Attacks . | . . . Total Damage . | . . . Kills . | . . . Allies Corrupted . | . . . Allies Melted . | . . . Intel | -11 -10 -10 ------- Run | Yrd Mat Min Active Infowar (turns) 655 | 20 535 100 Seismic 267 | 20 247 . T.N.C. 388 | . 288 100 Robot Analysis Total 1 | . 1 . Derelict Logs Recovered 1 | . . 1 Drone Launches . | . . . Drone Recoveries . | . . . Exploration | -11 -10 -10 ------------- Run | Yrd Mat Min Turns Passed 1101 | 97 547 457 Spaces Moved 663 | 61 333 269 Core 8 | 8 . . Treads 36 | . 36 . Legs . | . . . Wheels 619 | 53 297 269 Hover . | . . . Flight . | . . . Fastest Speed 50 | 50 100 110 Average Speed 110 | 93 112 112 Slowest Speed 160 | 100 160 115 Overloaded Moves . | . . . Propulsion Burnouts . | . . . Robots Hopped . | . . . Potential Cave-ins . | . . . Cave-ins Triggered . | . . . Exploration Rate (%) 35 | 4 52 50 Regions Visited 2 Branch Regions 1 Pre-discovered Areas 1 | . . 1 Known Exits Taken . | . . . Unknown Exits Taken 2 | 1 1 . Scrap Searched 1 | . . 1 Spaces Dug . | . . . Terrain Destroyed . | . . . Melee . | . . . Projectile . | . . . AOE . | . . . Terrain Rammed . | . . . Walls Destroyed . | . . . Machines Disabled . | . . . Actions | -11 -10 -10 --------- Run | Yrd Mat Min Total 888 | 85 430 373 Wait 96 | 1 36 59 Move 661 | 60 332 269 Hop . | . . . Pick Up 15 | 9 5 1 Fast Attach 16 | 7 7 2 Attach 2 | . 1 1 Detach . | . . . Swap 10 | 1 5 4 Drop 13 | 1 6 6 Fire 75 | 6 38 31 Melee . | . . . Ram . | . . . Kick . | . . . Crush . | . . . Escape Stasis . | . . . Rewire . | . . . Trap . | . . . Miscellaneous . | . . . Route ------- -11/Scrapyard -10/Materials (discovered 3 exits: [*Mat x2] / *Min) -10/Mines (discovered 1 exit: [*Sub]) History --------- Turn | Location | Event 27 | -11/Scrapyard | Discovered new exit (range 15) 98 | -11/Scrapyard | Entered Materials 239 | -10/Materials | Discovered new exit (range 16) 305 | -10/Materials | Build established: Mutant 364 | -10/Materials | Discovered new exit (range 12) 512 | -10/Materials | Discovered new exit (range 13) 645 | -10/Materials | Entered Mines 698 | -10/Mines | Core integrity fell below 50% 721 | -10/Mines | Discovered new exit (range 12) 733 | -10/Mines | Met a Derelict shopkeep closing up shop 972 | -10/Mines | Assembled infested the area 977 | -10/Mines | Assisted by a Guerilla fighting off Assembled 1099 | -10/Mines | Core integrity fell below 20% 1102 | -10/Mines | Destroyed by D-53 Grenadier with Mini Grenade Launcher Last Messages --------------- 00939_ K-01 Serf collects debris. 00965_ Acquired derelict log, extracted data. World map updated: -8/Materials. 00971_ K-01 Serf collects debris. 00972_ ALERT: Infestation in the mines, dispatching Demolisher response squad. 00974_ K-01 Serf collects debris. 00975_ Searching scrap... 00975_ Found Lgt. Ion Engine. 00975_ Found Lgt. Armor Plating. 00975_ Found 41 Matter. 00977_ A derelict emerges from the shadows: "You need to get out of here! I've been tracking a group of Assembled to figure out where they're coming from, and they're closing on this area, come on!" 00977_ K-01 Serf collects debris. 01085_ Lgt. Treads destroyed. 01089_ D-53 Grenadier destroyed. 01092_ The unstable cave ceiling collapses. 01100_ Destroyed Shock Absorption System. 01100_ Wheel destroyed. Map ----- +----------------------------------------------------+ | ???????????????# """ """ ! ## | | ????######?????# """ """ #### ![ ##++ | | ???## ##????# #??# =%* | | ???# #????############??## =[[ | | ???# #???????????????????#### | | ???# #??????????????????????### | | ???# #????????????????????????## | | ???# ##?????????????????????????## | | ???# ##???????????????????????????## | | ???# #?????????????????????????????##### | | ???## #?????????????????????????????????? | | ????# ##????????????????????????????????? | | ????# ####?????????????????????????????? | | ????## ######?????????????????###????? | | ?????# ##???????????????## ##??? | | ?????## ##??????????????# #### | | ??????# ##??????????????# | | ??????## ####??????????## | | ???????#### ##?????????# #### | | ??????????## #????####?# ##?? | | ???????????## #???## #### ##? | | ????????????#### ##???# #### #? | | ?????????????## ##?????# #### #? | | ???????????### #??#### #?## #? | | ????????#### #### #### ## | | ????????# @ ### ## # | | ????????# # #### #?## | | ????????# ## #??# #??# | | ????????# #### ##### #??## | | ???????? #??## ! #???# # | | ??????? ???##*%##### ####???# ## | | ??????# ????#d #?????#??????## ##? | | ??????# ! ??? [ ?????????????## % #?? | | ??????## !??] ?????????????## % ##?? | | ???????# ! ?# ?????????????##%##??? | | ??????? #?## ??????????????# #???? | | ??????? #???# #?????????????# #???? | | ???????# ???? #?????????????# #???? | | ???????# $??? ##?????????????# #???? | | ???????# ???# ##??????????????? #???? | | ???????# ???# ##???????????????? ????? | | ???????? ???## ##????????????????? ????? | | ??????????????#* ????????????????????????? | | ??????????????# ????????????????????????? | | ??????????????## #????????????????????????? | | ????????????????#?????????????????????????? | | ??????????????????????????????????????????? | | ??????????????????????????????????????????? | | ??????????????????????????????????????????? | | ??????????????????????????????????????????? | +----------------------------------------------------+ Best States ------------- Heat Dissipation 25 Energy Generation 14 Energy Capacity 250 Matter Stores 300 Matter Capacity 300 Sight Range 16 Terrain Scan Density 10 Evasion (%) 40 Recoil Reduction 1 Item Schematics ----------------- None Robot Schematics ------------------ None Fabricated ------------ Nothing Repaired ---------- Nothing Alien Tech Used ----------------- None Achievements -------------- None Challenges ------------ None Game ------ Seed ChipContainmentMapper Manual? 0 Play Time 00:19:49 Cumulative 747.5 hours Start 2025.07.22 @ 21:40:45 End 2025.07.22 @ 23:17:18 Sessions 1 Manual Loads 0 Difficulty Rogue Special Mode None Game No. 284 Rogue 280 Adventurer 4 Explorer 0 Win Type - Total 12 Types 7/1/1/1/0/1/0/0/0/1 Lore% 94 Gallery% 89 Achievement% 87 Wizard Run 0 Options --------- Layout 0 ASCII 0 Keyboard 0 Movement Numpad Keybinds 0 Fullscreen 2 Font 18/CogNarrow Map View 76x50 Zoom Use 0% Tactical HUD 1 Map Filters SHIFT_HUE(110) Filters SHIFT_HUE(250) Steam X RUN: b2d33389-fe0f-451d-b75f-688dc15207b9